Cogmind - Beta 12 @@@ ROGUE MODE // 2023.05.08 @ 16:26:00 Player: Inkie Result: Destroyed by G-50 Soldier with Heavy Laser Performance ------------- Evolutions (2) 1000 Regions Visited (11) 2200 Robots Destroyed (139) 695 Value Destroyed (5425) 5425 Prototype IDs (30) 600 Alien Tech Used (0) 0 Bonus (1318) 1318 TOTAL SCORE: 11238 Bonus ------- High Alert Combat Kills 489 Follower Combat Kills 506 Entered Garrisons 400 Friendly Fire -77 Cogmind --------- Core Integrity 0/550 Matter 214/300 Energy 290/290 System Corruption 3% Temperature Hot (268) Movement Treading (720) Ox7 Location -8/Materials Parts ------- > --- POWER (1) -------- Reinforced Deuterium Engine > --- PROPULSION (2) --- Light Treads Wheel > --- UTILITY (6) ------ Huge Storage Unit Hardened Heavy Armor Plating Hardened Heavy Armor Plating Hacking Suite > --- WEAPON (2) ------- Heavy Missile Launcher Heavy Missile Launcher > --- INVENTORY (25) --- Heat Sink Improved Signal Interpreter Improved Terrain Scan Processor ECM Suite Hardened Heavy Armor Plating Medium Insulated Plating Medium Insulated Plating System Shield Long-range Tractor Beam Trap Extractor (0/4) Trap Reconfigurator Particle Gun Assault Cannon Assault Cannon Improved Datajack Plasma Cutter Plasma Cutter Peak State ------------ > --- POWER ------------ Reinforced Deuterium Engine > --- PROPULSION ------- Light Treads Wheel > --- UTILITY ---------- Huge Storage Unit Hardened Heavy Armor Plating Hardened Heavy Armor Plating Hacking Suite > --- WEAPON ----------- Heavy Missile Launcher Heavy Missile Launcher > --- INVENTORY -------- Heat Sink Improved Signal Interpreter Improved Terrain Scan Processor ECM Suite Hardened Heavy Armor Plating Medium Insulated Plating Medium Insulated Plating System Shield Long-range Tractor Beam Trap Extractor Trap Reconfigurator Particle Gun Assault Cannon Assault Cannon Improved Datajack Plasma Cutter Plasma Cutter [Rating: 39] Favorites ----------- Power Light Angular Momentum Engine Engine Light Angular Momentum Engine Propulsion Light Treads Treads Light Treads Wheel Armored Wheel Utility Improved Heat Sink Device Improved Heat Sink Storage Small Storage Unit Processor Targeting Computer Hackware Hacking Suite Protection Medium Armor Plating Weapon Autogun Energy Gun Beam Rifle Ballistic Gun Autogun Ballistic Cannon Assault Cannon Launcher Grenade Launcher Special Melee Weapon Improved Datajack Build | -11 -10 -10 -9 -9 -9 -8 -8 -8 -8 -8 -8 ------- Run | Jun Mat Min Mat Min Exi Min Mat Gar Mat Gar Mat Slots Evolved 4 | . . . 2 . . . 2 . . . . Power . | . . . . . . . . . . . . Propulsion . | . . . . . . . . . . . . Utility 4 | . . . 2 . . . 2 . . . . Weapon . | . . . . . . . . . . . . Parts Attached 108 | 8 8 10 17 8 2 1 12 18 14 5 5 Power 7 | 2 . 1 . 2 . . . 1 1 . . Engine 7 | 2 . 1 . 2 . . . 1 1 . . Core . | . . . . . . . . . . . . Reactor . | . . . . . . . . . . . . Propulsion 27 | 2 1 2 6 . . 1 4 6 2 2 1 Treads 25 | 2 1 2 6 . . 1 4 6 2 1 . Leg . | . . . . . . . . . . . . Wheel 2 | . . . . . . . . . . 1 1 Hover . | . . . . . . . . . . . . Flight . | . . . . . . . . . . . . Utility 30 | 1 1 2 3 5 2 . 6 2 6 1 1 Device 7 | . . . 1 2 . . 2 . 2 . . Storage 5 | 1 . . . 1 2 . . . 1 . . Processor 1 | . . . . . . . 1 . . . . Hackware 2 | . . . . . . . 2 . . . . Protection 15 | . 1 2 2 2 . . 1 2 3 1 1 Artifact . | . . . . . . . . . . . . Weapon 44 | 3 6 5 8 1 . . 2 9 5 2 3 Energy Gun 5 | . . . 1 . . . . 1 2 1 . Energy Cannon . | . . . . . . . . . . . . Ballistic Gun 18 | 3 3 2 4 1 . . 1 4 . . . Ballistic Cannon 1 | . . . . . . . . . . . 1 Launcher 19 | . 3 3 2 . . . 1 4 3 1 2 Special Weapon . | . . . . . . . . . . . . Impact Weapon . | . . . . . . . . . . . . Slashing Weapon . | . . . . . . . . . . . . Piercing Weapon . | . . . . . . . . . . . . Special Melee Weapon 1 | . . . 1 . . . . . . . . Unidentified Prototypes 1 | . . . . 1 . . . . . . . Parts Lost 30 | . . 2 7 . . . 4 7 3 7 . Power 4 | . . 1 1 . . . . 1 1 . . Propulsion 6 | . . . 2 . . . . 2 . 2 . Utility 10 | . . . 1 . . . 3 3 . 3 . Weapon 10 | . . 1 3 . . . 1 1 2 2 . Highest Loss Streak 4 | . . 2 3 . . . 4 4 1 3 . To Critical Strikes . | . . . . . . . . . . . . Average Slot Usage (%) 89 | . 91 96 67 99 100 100 91 93 88 70 69 Engine 9 | . 14 10 6 10 11 11 9 8 9 9 9 Treads 20 | . 28 28 21 22 22 22 18 17 18 4 9 Device 7 | . . . 4 11 11 11 17 7 8 . . Storage 10 | . 14 14 11 11 11 11 9 9 9 9 9 Processor 2 | . . . . . . . 5 9 9 6 . Hackware 3 | . . . . . . . 6 9 9 9 9 Protection 12 | . 5 14 3 21 22 22 8 13 9 6 9 Energy Gun 3 | . . . 1 3 . . . 4 15 8 8 Ballistic Gun 14 | . 20 21 18 18 22 22 15 10 1 . . Launcher 2 | . 7 6 . . . . 2 2 . 8 1 Naked Turns . | . . . . . . . . . . . . Heaviest Build 126 | 14 16 15 22 46 66 66 67 66 126 126 125 Greatest Support 43 | 40 40 40 43 43 43 43 43 43 40 20 20 Greatest Overweight (x) 12 | . . . . 1 1 1 1 1 3 10 12 Average Overweight (x) 1 | . . . . . 1 1 1 1 2 8 11 Largest Inventory Capacity 25 | 8 8 8 8 15 20 20 20 20 25 25 25 Average Capacity 15 | 6 8 8 8 11 15 20 20 20 21 25 25 Most Carried 21 | 2 8 8 8 8 12 14 20 20 21 20 20 Average Carried 12 | 1 7 7 7 7 9 12 16 18 19 17 17 Final Capacity 25 | 8 8 8 8 15 20 20 20 20 25 25 25 Final Carried 20 | 2 8 8 8 8 12 14 20 17 20 17 18 Class Distribution -------------------- 62% | Mutant 30% | Scavenger-Mutant 6% | Commander-Mutant Dominant Class ---------------- Mutant | -10/Materials Mutant | -10/Mines Mutant | -9/Materials Mutant | -9/Mines Commander-Mutant | -9/Exiles Mutant | -8/Mines Scavenger-Mutant | -8/Materials Scavenger-Mutant | -8/Garrison Scavenger-Mutant | -8/Materials Mutant | -8/Garrison Mutant | -8/Materials Resources | -11 -10 -10 -9 -9 -9 -8 -8 -8 -8 -8 -8 ----------- Run | Jun Mat Min Mat Min Exi Min Mat Gar Mat Gar Mat Matter Collected 3399 | 234 265 306 458 283 . 52 537 507 194 402 161 Remotely . | . . . . . . . . . . . . Salvage Created 3892 | . 328 114 815 83 . 87 882 621 494 318 150 Parts 238 | . 14 4 64 5 . 7 48 35 27 26 8 Haulers Intercepted 5 | . 2 . 2 . . . 1 . . . . Recyclers Shooed . | . . . . . . . . . . . . Parts Field Recycled . | . . . . . . . . . . . . Retrieved Matter . | . . . . . . . . . . . . Parts Self-Destructed . | . . . . . . . . . . . . Prevented . | . . . . . . . . . . . . Kills | -11 -10 -10 -9 -9 -9 -8 -8 -8 -8 -8 -8 ------- Run | Jun Mat Min Mat Min Exi Min Mat Gar Mat Gar Mat Combat Hostiles Destroyed 127 | . 7 13 23 2 . 2 16 18 15 27 4 Guns 55 | . . 3 13 2 . 2 12 14 7 1 1 AOE 71 | . 7 10 10 . . . 4 4 7 26 3 Classes Destroyed 16 | . 5 2 4 . . 1 2 1 1 . . Worker 6 | . . . 1 . . . 3 . 1 . 1 Builder 2 | . . . 1 . . . 1 . . . . Hauler 5 | . 2 . 2 . . . 1 . . . . Recycler 3 | . . . 1 . . . 2 . . . . Mechanic 2 | . . . . . . . 1 . . . 1 Operator 2 | . 2 . . . . . . . . . . Watcher 2 | . 1 . . . . . 1 . . . . Swarmer 41 | . 3 . 7 . . . 4 6 5 15 1 Grunt 51 | . 4 2 9 2 . 1 7 7 7 10 2 Brawler 2 | . . . . . . . . . 1 . 1 Duelist 3 | . . . . . . 1 2 . . . . Sentry 17 | . . . 7 . . . 2 4 2 2 . Demolisher 1 | . . 1 . . . . . . . . . Specialist 1 | . . . . . . . . 1 . . . Hunter 1 | . . . . . . . 1 . . . . Assembled 10 | . . 10 . . . . . . . . . Best Kill Streak 13 | . 5 9 6 1 . 2 11 7 5 13 5 Combat Bots Only 13 | . 5 9 4 1 . 2 5 7 5 13 4 Max Kills in Single Turn 5 | . 5 3 3 1 . 1 3 2 2 4 2 Gunslinging 1 | . . . . . . . 1 . . . . Exploded 5 | . 5 3 2 . . . 2 2 2 4 2 Melee . | . . . . . . . . . . . . Uniques/NPCs Destroyed . | . . . . . . . . . . . . Combat | -11 -10 -10 -9 -9 -9 -8 -8 -8 -8 -8 -8 -------- Run | Jun Mat Min Mat Min Exi Min Mat Gar Mat Gar Mat Damage Taken 6340 | . 187 417 1113 51 . . 941 1164 1003 1098 366 Core 925 | . 22 63 262 14 . . 88 139 116 164 57 Absorbed by Shields 258 | . . . . . . . 122 136 . . . Redirected to Shielding 77 | . 14 28 6 . . . . 29 . . . Regen/Repaired (Parts) 280 | . . . 140 . . . 140 . . . . Core Remaining (%) 65 | 100 . 66 . . . 31 . . . . . Volleys Fired 327 | . 19 15 72 7 . 4 53 66 51 35 5 Largest 2 | . 2 2 2 2 . 2 2 2 2 1 2 Hottest 109 | . 40 60 89 79 . 46 51 73 106 65 109 Shots Fired 557 | . 30 30 135 14 . 8 102 121 71 36 10 Gun 466 | . 22 12 119 14 . 8 99 116 67 6 3 Cannon 3 | . . . . . . . . . . . 3 Launcher 88 | . 8 18 16 . . . 3 5 4 30 4 Special . | . . . . . . . . . . . . Kinetic 350 | . 22 12 105 7 . 8 99 90 4 . 3 Thermal 119 | . . . 14 7 . . . 26 63 6 3 Explosive 88 | . 8 18 16 . . . 3 5 4 30 4 Electromagnetic . | . . . . . . . . . . . . Robot Hit Streak 21 | . 4 6 15 6 . 3 17 13 16 18 21 Robot Miss Streak 4 | . 3 2 2 1 . 3 4 3 3 1 1 Penetration Max 1 | . . . . . . . 1 1 . . . Secondary Targets 6 | . . . . . . 1 1 4 . . . Max Gunslinging Chain 1 | . . . . . . 1 1 1 . . . Shots Hit Robots 353 | . 11 10 98 9 . 4 66 77 50 22 6 Core Hits 251 | . 21 30 47 4 . 2 43 37 25 37 5 Critical Kills 1 | . . . . . . . . 1 . . . Critical Parts Destroyed 1 | . . . . . . . . 1 . . . Critical Strikes 7 | . . . 1 . . . . 2 4 . . Burn 5 | . . . 1 . . . . . 4 . . Destroy 2 | . . . . . . . . 2 . . . Melee Attacks 2 | . . . 2 . . . . . . . . Impact . | . . . . . . . . . . . . Slashing . | . . . . . . . . . . . . Piercing . | . . . . . . . . . . . . Sneak Attacks 2 | . . . 2 . . . . . . . . Combat Hostiles . | . . . . . . . . . . . . Follow-up Attacks . | . . . . . . . . . . . . Damage Inflicted 11502 | . 447 707 2125 147 . 74 1838 1792 1198 2534 640 Guns 4854 | . 132 80 1096 141 . 74 1153 1351 748 51 28 Cannons 44 | . . . . . . . . . . . 44 Explosions 6591 | . 313 627 1029 . . . 680 441 450 2483 568 Melee . | . . . . . . . . . . . . Ramming 13 | . 2 . . 6 . . 5 . . . . Kinetic 3710 | . 132 80 965 84 . 74 1153 1147 31 . 44 Thermal 1398 | . . . 131 57 . . . 204 717 51 238 Explosive 6381 | . 313 627 1029 . . . 680 441 450 2483 358 Electromagnetic . | . . . . . . . . . . . . Impact . | . . . . . . . . . . . . Slashing . | . . . . . . . . . . . . Piercing . | . . . . . . . . . . . . Highest Corruption 3 | . . . . . . . . . 1 3 3 Average Corruption 1 | . . . . . . . . . 1 1 3 Corruption Purged . | . . . . . . . . . . . . Corruption Blocked . | . . . . . . . . . . . . Effects 17 | . . . . . . . . . . 9 8 Message Errors 5 | . . . . . . . . . . 3 2 Matter Fused 5 | . . . . . . . . . . 2 3 Heat Flow Errors 2 | . . . . . . . . . . 1 1 Energy Discharges 1 | . . . . . . . . . . . 1 Data Loss (minor) 2 | . . . . . . . . . . 1 1 Data Loss (major) 1 | . . . . . . . . . . 1 . Misfires 1 | . . . . . . . . . . 1 . Overload Shots . | . . . . . . . . . . . . Overflow Damage 324 | . . 41 47 . . . 39 23 68 39 67 Projectiles . | . . . . . . . . . . . . Explosions 324 | . . 41 47 . . . 39 23 68 39 67 Melee . | . . . . . . . . . . . . Knockbacks 1 | . . . . . . . . . . . 1 Impact . | . . . . . . . . . . . . Kinetic 1 | . . . . . . . . . . . 1 Secondary . | . . . . . . . . . . . . Self-Inflicted Damage 677 | . 105 101 94 . . . . 22 6 349 . Shots 25 | . 5 5 3 . . . . 1 1 10 . Rammed 4 | . 2 . . 1 . . 1 . . . . Targets Rammed 4 | . 2 . . 1 . . 1 . . . . Kicked . | . . . . . . . . . . . . Crushed . | . . . . . . . . . . . . Highest Temperature 259 | . 2 20 11 46 . . 18 183 168 171 259 Average Temperature 62 | . 2 14 6 16 . . 14 61 70 51 96 Received Heat Transfer 1948 | . 39 44 366 30 . . 349 418 324 225 153 Siege Activations . | . . . . . . . . . . . . Robots Corrupted . | . . . . . . . . . . . . Combat Hostiles . | . . . . . . . . . . . . Parts Fried . | . . . . . . . . . . . . Impact Corruptions . | . . . . . . . . . . . . Robots Melted 1 | . . . . . . . . . 1 . . Combat Hostiles 1 | . . . . . . . . . 1 . . Parts Melted 8 | . . . 1 1 . . . 1 4 1 . Heat Transferred 3369 | . . . 407 148 . . . 444 2035 111 224 Parts Sabotaged . | . . . . . . . . . . . . Parts Stolen . | . . . . . . . . . . . . Parts Stripped . | . . . . . . . . . . . . Power Chain Reactions . | . . . . . . . . . . . . Missiles Intercepted . | . . . . . . . . . . . . Alert | -11 -10 -10 -9 -9 -9 -8 -8 -8 -8 -8 -8 ------- Run | Jun Mat Min Mat Min Exi Min Mat Gar Mat Gar Mat Peak Influence 1066 | . 213 242 602 270 . 144 365 882 514 1066 665 Initial 514 | . . 42 . 190 . . 48 219 429 156 514 Average 263 | . 80 85 174 129 . 52 209 600 261 758 550 Maximum Alert Level 3 | . 1 1 2 1 . . 1 3 2 3 2 Low Security (%) 54 | 100 88 83 61 71 . 100 48 . 45 10 . Level 1 21 | . 11 16 23 28 . . 51 26 19 14 . Level 2 14 | . . . 14 . . . . 28 35 13 100 Level 3 9 | . . . . . . . . 44 . 61 . Level 4 . | . . . . . . . . . . . . Level 5 . | . . . . . . . . . . . . High Security . | . . . . . . . . . . . . Max Security . | . . . . . . . . . . . . Squads Dispatched 11 | . 1 . 2 . . . 3 . 4 . 1 Investigation 2 | . . . . . . . . . 2 . . Extermination . | . . . . . . . . . . . . Reinforcement 7 | . 1 . 2 . . . 3 . 1 . . Assault 1 | . . . . . . . . . . . 1 Garrison 1 | . . . . . . . . . 1 . . Intercept . | . . . . . . . . . . . . Searches Triggered . | . . . . . . . . . . . . Construction Impeded 1 | . . . 1 . . . . . . . . Haulers Reinforced . | . . . . . . . . . . . . Active Scanning Responses . | . . . . . . . . . . . . Cargo Convoy Interrupts . | . . . . . . . . . . . . Stealth | -11 -10 -10 -9 -9 -9 -8 -8 -8 -8 -8 -8 --------- Run | Jun Mat Min Mat Min Exi Min Mat Gar Mat Gar Mat Distress Signals 8 | . . . 3 . . . 3 . 1 . 1 Communications Jammed . | . . . . . . . . . . . . Distress Signals . | . . . . . . . . . . . . Times Spotted 191 | . 15 16 32 7 . 5 33 22 20 22 19 Peak Tracking Total 8 | . 5 8 6 3 . 3 6 7 5 7 7 Tactical Retreats 8 | . . . 2 3 . . . 1 . 1 1 Traps | -11 -10 -10 -9 -9 -9 -8 -8 -8 -8 -8 -8 ------- Run | Jun Mat Min Mat Min Exi Min Mat Gar Mat Gar Mat Traps Triggered 11 | . . . . . . . . 8 . 3 . Indirectly . | . . . . . . . . . . . . Trap Hack Attempts 10 | . . . 10 . . . . . . . . Triggered . | . . . . . . . . . . . . Disarmed . | . . . . . . . . . . . . Reprogrammed 1 | . . . 1 . . . . . . . . Reused . | . . . . . . . . . . . . Traps Extracted . | . . . . . . . . . . . . Installed . | . . . . . . . . . . . . Triggered . | . . . . . . . . . . . . Machines | -11 -10 -10 -9 -9 -9 -8 -8 -8 -8 -8 -8 ---------- Run | Jun Mat Min Mat Min Exi Min Mat Gar Mat Gar Mat Machines Disabled 33 | . 3 8 7 . . . 4 6 . 4 1 Max in Single Turn 5 | . 1 5 3 . . . 3 1 . 2 1 Garrison Relay 6 | . . . . . . . . 4 . 2 . Machines Repaired . | . . . . . . . . . . . . Machines Sabotaged . | . . . . . . . . . . . . Overloaded Fab Kills . | . . . . . . . . . . . . Hacking | -11 -10 -10 -9 -9 -9 -8 -8 -8 -8 -8 -8 --------- Run | Jun Mat Min Mat Min Exi Min Mat Gar Mat Gar Mat Machines Accessed 34 | . 6 2 7 . 2 1 7 2 4 1 2 Terminals 27 | . 6 1 6 . . 1 5 2 3 1 2 Fabricators . | . . . . . . . . . . . . Repair Stations 2 | . . . 1 . . . 1 . . . . Recycling Units . | . . . . . . . . . . . . Scanalyzers . | . . . . . . . . . . . . Garrison Access 2 | . . . . . . . 1 . 1 . . Total Hacks 85 | . 15 3 23 . 2 2 19 3 11 2 5 Successful 39 | . 4 2 13 . 2 . 7 3 6 . 2 Failed 46 | . 11 1 10 . . 2 12 . 5 2 3 Catastrophic 11 | . 4 . 1 . . 1 1 . 3 . 1 Database Lockouts . | . . . . . . . . . . . . Manual 62 | . 13 2 17 . 1 2 12 2 7 2 4 Terminals 70 | . 15 2 18 . . 2 15 3 8 2 5 Fabricators . | . . . . . . . . . . . . Repair Stations 8 | . . . 5 . . . 3 . . . . Recycling Units . | . . . . . . . . . . . . Scanalyzers . | . . . . . . . . . . . . Garrison Access 4 | . . . . . . . 1 . 3 . . Terminal Hacks 18 | . 1 2 5 . 2 . 2 2 4 . . Record 1 | . . . . . 1 . . . . . . Robot Schematic 1 | . . . . . . . 1 . . . . Prototype ID Bank 4 | . . 1 3 . . . . . . . . Open Door 2 | . . 1 . . . . . 1 . . . Branch Access Points 2 | . . . 2 . . . . . . . . Machine Index 1 | . . . . . . . . . 1 . . Garrison Index 1 | . . . . . . . 1 . . . . Alert Level 1 | . . . . . . . . . 1 . . Unreport Threat 2 | . . . . . . . . . 2 . . Recall Reinforcements 1 | . 1 . . . . . . . . . . Garrison Registry 1 | . . . . . . . . 1 . . . EX-Prototype ID Bank 1 | . . . . . 1 . . . . . . Fabricator Hacks . | . . . . . . . . . . . . Repair Station Hacks 7 | . . . 5 . . . 2 . . . . Scan Component 4 | . . . 3 . . . 1 . . . . Repair 3 | . . . 2 . . . 1 . . . . Recycling Unit Hacks . | . . . . . . . . . . . . Scanalyzer . | . . . . . . . . . . . . Garrison Access Hacks 2 | . . . . . . . 1 . 1 . . Unlock Access 2 | . . . . . . . 1 . 1 . . Unauthorized Hacks 12 | . 3 . 3 . . . 2 1 1 . 2 Terminals 11 | . 3 . 3 . . . 2 1 . . 2 Assimilate 2 | . 2 . . . . . . . . . . Botnet 7 | . . . 2 . . . 2 1 . . 2 Operators 2 | . 1 . 1 . . . . . . . . Fabricators . | . . . . . . . . . . . . Repair Stations . | . . . . . . . . . . . . Recycling Units . | . . . . . . . . . . . . Scanalyzers . | . . . . . . . . . . . . Garrison Access 1 | . . . . . . . . . 1 . . Reprogram 1 | . . . . . . . . . 1 . . Data Cores Recovered . | . . . . . . . . . . . . Used . | . . . . . . . . . . . . Hacking Detections 29 | . 6 1 7 . . 1 6 1 4 1 2 Full Trace Events 2 | . . . . . . . . . 1 1 . Feedback Events 1 | . . . . . . . . . 1 . . Corruption 1 | . . . . . . . . . 1 . . Feedback Blocked . | . . . . . . . . . . . . Robot Schematics Acquired 1 | . . . . . . . 1 . . . . Robots Built . | . . . . . . . . . . . . Authchips . | . . . . . . . . . . . . Time . | . . . . . . . . . . . . Total Robot Build Rating . | . . . . . . . . . . . . Part Schematics Acquired . | . . . . . . . . . . . . Parts Built . | . . . . . . . . . . . . Authchips . | . . . . . . . . . . . . Time . | . . . . . . . . . . . . Total Part Build Rating . | . . . . . . . . . . . . Parts Repaired 3 | . . . 2 . . . 1 . . . . Time 84 | . . . 52 . . . 32 . . . . Parts Recycled . | . . . . . . . . . . . . Recycled Matter . | . . . . . . . . . . . . Retrieved Matter . | . . . . . . . . . . . . Retrieved Components . | . . . . . . . . . . . . Parts Scanalyzed . | . . . . . . . . . . . . Part Schematics Acquired . | . . . . . . . . . . . . Parts Damaged . | . . . . . . . . . . . . Bothacking | -11 -10 -10 -9 -9 -9 -8 -8 -8 -8 -8 -8 ------------ Run | Jun Mat Min Mat Min Exi Min Mat Gar Mat Gar Mat Used RIF Installer . | . . . . . . . . . . . . Robots Hacked . | . . . . . . . . . . . . Non-combat . | . . . . . . . . . . . . Combat . | . . . . . . . . . . . . Robot Hacks Applied . | . . . . . . . . . . . . Relay Couplers Released 25 | . . . . . . . . 18 . 7 . Machine Destruction 25 | . . . . . . . . 18 . 7 . Fabnet Peak Effective % . | . . . . . . . . . . . . Robots Rewired 9 | . . . . . 4 . . 2 . 3 . Allies Hacked . | . . . . . . . . . . . . Hacks Repelled . | . . . . . . . . . . . . Allies | -11 -10 -10 -9 -9 -9 -8 -8 -8 -8 -8 -8 -------- Run | Jun Mat Min Mat Min Exi Min Mat Gar Mat Gar Mat Total Allies 15 | . . . . 5 4 . . 2 1 3 . Largest Group 5 | . . . . 5 5 5 1 2 1 2 3 Highest-Rated Group 82 | . . . . 82 74 74 21 64 16 32 48 Highest-Rated Ally 39 | . . . . 31 31 21 21 39 16 16 16 Total Orders . | . . . . . . . . . . . . Ally Attacks 114 | . . . . 25 . 36 8 6 1 . 38 Total Damage 1470 | . . . . 256 . 495 194 105 17 . 403 Kills 22 | . . . . 4 . 5 3 3 . . 7 Allies Corrupted . | . . . . . . . . . . . . Allies Melted 1 | . . . . 1 . . . . . . . Intel | -11 -10 -10 -9 -9 -9 -8 -8 -8 -8 -8 -8 ------- Run | Jun Mat Min Mat Min Exi Min Mat Gar Mat Gar Mat Robot Analysis Total . | . . . . . . . . . . . . Derelict Logs Recovered 2 | . . . . 2 . . . . . . . Drone Launches . | . . . . . . . . . . . . Drone Recoveries . | . . . . . . . . . . . . Exploration | -11 -10 -10 -9 -9 -9 -8 -8 -8 -8 -8 -8 ------------- Run | Jun Mat Min Mat Min Exi Min Mat Gar Mat Gar Mat Turns Passed 11244 | 70 1169 861 1210 1338 1224 793 1075 1166 1118 748 472 Spaces Moved 4423 | 39 559 476 505 643 495 319 350 387 285 223 142 Core 3 | 3 . . . . . . . . . . . Treads 4102 | 36 559 476 505 643 495 319 350 387 285 30 17 Legs . | . . . . . . . . . . . . Wheels 318 | . . . . . . . . . . 193 125 Hover . | . . . . . . . . . . . . Flight . | . . . . . . . . . . . . Fastest Speed 50 | 50 160 160 160 160 240 240 240 240 240 210 260 Average Speed 214 | 151 160 160 160 193 240 240 240 240 332 283 305 Slowest Speed 640 | 160 160 160 160 240 240 240 240 240 400 640 640 Overloaded Moves . | . . . . . . . . . . . . Propulsion Burnouts . | . . . . . . . . . . . . Robots Hopped . | . . . . . . . . . . . . Cave-ins Triggered 1 | . . . . . . . . . . 1 . Exploration Rate (%) 54 | 5 80 68 55 97 90 77 41 52 28 37 18 Regions Visited 11 Branch Regions 4 Pre-discovered Areas 2 | . . . . 1 1 . . . . . . Known Exits Taken 4 | . . . 1 1 . . 1 . 1 . . Unknown Exits Taken 5 | 1 1 1 . . 1 1 . . . . . Scrap Searched 7 | . . 1 . 4 . 2 . . . . . Spaces Dug 15 | . 10 . . . . . . . . 5 . Terrain Destroyed 510 | . 57 14 85 . . . 22 37 40 181 74 Melee . | . . . . . . . . . . . . Projectile 1 | . . . . . . . . . . . 1 AOE 509 | . 57 14 85 . . . 22 37 40 181 73 Terrain Rammed . | . . . . . . . . . . . . Walls Destroyed . | . . . . . . . . . . . . Machines Disabled . | . . . . . . . . . . . . Actions | -11 -10 -10 -9 -9 -9 -8 -8 -8 -8 -8 -8 --------- Run | Jun Mat Min Mat Min Exi Min Mat Gar Mat Gar Mat Total 5628 | 46 801 543 773 728 531 340 491 514 390 302 169 Wait 593 | . 204 38 155 60 1 16 68 12 15 10 14 Move 4412 | 38 558 475 504 642 494 318 350 385 284 222 142 Hop . | . . . . . . . . . . . . Pick Up 49 | . 8 1 6 2 3 1 6 4 13 2 3 Fast Attach 30 | 6 . 3 8 4 . . 5 1 2 . 1 Attach 22 | . 1 1 2 2 . . 2 5 4 4 1 Detach 1 | . . . . 1 . . . . . . . Swap 56 | 2 7 6 7 2 2 1 5 12 8 1 3 Drop 41 | . 2 4 7 7 1 . 1 6 13 . . Fire 327 | . 19 15 72 7 . 4 53 66 51 35 5 Melee 2 | . . . 2 . . . . . . . . Ram . | . . . . . . . . . . . . Kick . | . . . . . . . . . . . . Crush 4 | . 2 . . 1 . . 1 . . . . Escape Stasis 33 | . . . . . . . . 17 . 16 . Rewire 48 | . . . . . 30 . . 6 . 12 . Trap 10 | . . . 10 . . . . . . . . Miscellaneous . | . . . . . . . . . . . . Route ------- -11/Junkyard -10/Materials (discovered 2 exits: *Mat / *Min) -10/Mines -9/Materials (discovered 2 exits: *Mat / *Min) -9/Mines (discovered 3 exits: *Mat x2 / *Exi) -9/Exiles -8/Mines -8/Materials (discovered 2 exits: Fac / Gar) -8/Garrison (discovered 3 exits: *Mat x3) -8/Materials (discovered 2 exits: *Fac / Gar) -8/Garrison (discovered 2 exits: *Mat x2) -8/Materials History --------- Turn | Location | Event 8 | -11/Junkyard | Discovered new exit (range 15) 71 | -11/Junkyard | Entered Materials 313 | -10/Materials | Build established: Mutant 348 | -10/Materials | Discovered new exit (range 13) 654 | -10/Materials | Discovered new exit (range 16) 1240 | -10/Materials | Entered Mines 1266 | -10/Mines | Found the Drone Emporium 1284 | -10/Mines | Found Prototype Device 1403 | -10/Mines | Assembled infested the area 1408 | -10/Mines | Assisted by a Guerilla fighting off Assembled 1466 | -10/Mines | Destroyed 9 combat bots 2072 | -10/Mines | Discovered new exit (range 7) 2101 | -10/Mines | Entered Materials 2101 | -9/Materials | Evolved 2 slots: Utility x2 2510 | -9/Materials | Identified exit to Mines 2658 | -9/Materials | Repaired Lgt. Treads 2686 | -9/Materials | Repaired Assault Rifle 3042 | -9/Materials | Discovered new exit (range 6) 3096 | -9/Materials | Core integrity fell below 50% 3193 | -9/Materials | Lost 3 parts (2n1w) 3311 | -9/Materials | Entered Mines 3328 | -9/Mines | Met a Derelict bent on vengeance 3351 | -9/Mines | Identified exit to Exiles 3353 | -9/Mines | Learned 8 Materials zone layouts 3472 | -9/Mines | Deemed a non-threat by the Exiles lab entrance 3479 | -9/Mines | Assisted by bots powering up and referring to "LRC-V3" 3724 | -9/Mines | Build established: Scavenger-Mutant 3889 | -9/Mines | Identified Decoy Drone Bay 4024 | -9/Mines | Build established: Mutant 4266 | -9/Mines | Discovered new exit (range 14) 4269 | -9/Mines | Discovered new exit (range 3) 4275 | -9/Mines | Learned location of Storage (-7) 4649 | -9/Mines | Entered Exiles 4649 | -9/Exiles | Found Exiles lab destroyed 4649 | -9/Exiles | Accompanied by 3 allies 4679 | -9/Exiles | Led the pair of lost Derelicts to a safe place 4899 | -9/Exiles | Opened EX-Vault 4911 | -9/Exiles | Found Trap Reconfigurator 5067 | -9/Exiles | Learned location of Zion (-6) 5410 | -9/Exiles | Build established: Commander-Mutant 5845 | -9/Exiles | Discovered new exit (range 14) 5873 | -9/Exiles | Entered Mines 5873 | -8/Mines | Accompanied by 5 allies 6181 | -8/Mines | Build established: Mutant 6649 | -8/Mines | Discovered new exit (range 7) 6666 | -8/Mines | Entered Materials 6666 | -8/Materials | Accompanied by 1 ally 6666 | -8/Materials | Evolved 2 slots: Utility x2 6667 | -8/Materials | Identified exit to Factory 6927 | -8/Materials | Lost 4 parts (3u1w) 6940 | -8/Materials | Build established: Scavenger-Mutant 7345 | -8/Materials | Repaired Imp. Treads 7741 | -8/Materials | Identified exit to Garrison 7741 | -8/Materials | Entered Garrison 7870 | -8/Garrison | Triggered checkpoint 7917 | -8/Garrison | Garrison Relay disabled 8082 | -8/Garrison | Destroyed 7 combat bots 8116 | -8/Garrison | Triggered checkpoint 8198 | -8/Garrison | Triggered checkpoint 8317 | -8/Garrison | Lost 4 parts (2n1u1w) 8384 | -8/Garrison | Discovered new exit (range 14) 8384 | -8/Garrison | Discovered new exit (range 65) 8384 | -8/Garrison | Discovered new exit (range 53) 8389 | -8/Garrison | Garrison Relay disabled 8410 | -8/Garrison | Triggered checkpoint 8450 | -8/Garrison | Garrison Relay disabled 8568 | -8/Garrison | Attempted to access garrison exit controls, blocked by remote lockdown 8776 | -8/Garrison | Triggered checkpoint 8844 | -8/Garrison | Garrison Relay disabled 8907 | -8/Garrison | Entered Materials 9704 | -8/Materials | Discovered exit to Factory (range 4) 9744 | -8/Materials | Identified exit to Garrison 9807 | -8/Materials | Core integrity fell below 50% 9949 | -8/Materials | Garrison activated, responded to threat 10025 | -8/Materials | Entered Garrison 10096 | -8/Garrison | Triggered checkpoint 10136 | -8/Garrison | Lost 3 parts (2u1w) 10136 | -8/Garrison | Garrison Relay disabled 10214 | -8/Garrison | Triggered checkpoint 10226 | -8/Garrison | Triggered checkpoint 10237 | -8/Garrison | Core integrity fell below 20% 10256 | -8/Garrison | Destroyed 13 combat bots 10337 | -8/Garrison | Build established: Mutant 10448 | -8/Garrison | Discovered new exit (range 9) 10534 | -8/Garrison | Triggered checkpoint 10606 | -8/Garrison | Crushed by falling debris 10709 | -8/Garrison | Discovered new exit (range 6) 10773 | -8/Garrison | Entered Materials 10773 | -8/Materials | Accompanied by 3 allies 11173 | -8/Materials | First assault squad dispatched 11245 | -8/Materials | Destroyed by G-50 Soldier with Heavy Laser Last Messages --------------- 11228_ System corrupted: Matter fused (-9). 11228_ S-10 Pest destroyed. 11229_ Acquired 14 matter. 11234_ C-30 ARC bursts open, deploying its payload. 11234_ G-50 Soldier unfolds itself. 11234_ G-47 Trooper unfolds itself. 11234_ B-36 Bruiser unfolds itself. 11234_ M-28 Smith unfolds itself. 11236_ Penetrated by Slug. 11237_ M-28 Smith repairs G-47 Trooper. 11240_ B-36 Bruiser destroyed. 11240_ M-28 Smith destroyed. 11241_ Critical hit (Burn: +37). 11243_ Fusion Modulator explodes. 11243_ Destroyed Lgt. Nuclear Core. 11243_ G-47 Trooper destroyed. 11243_ Destroyed Imp. Heat Sink. 11243_ G-47 Trooper destroyed. 11243_ R-06 Scavenger collects Aluminum Leg. 11244_ R-06 Scavenger collects Imp. Heat Sink. Map ----- +----------------------------------------------------+ | ## """ # # #?????????????????????? | | ##### """ # #########/#?????????????????????? | | ????# """ # #???????# #?????????????????????? | | ????# # #?????### ###???????????????????? | | ????########## ####### ########????????????? | | ?????????????# "" #????????????? | | ?????????????# T #????????????? | | ?????????????# ! #????????????? | | ?????????????#######+###% ##### ##????????????? | | ?????????????????? ?## ######+#?????????????? | | ????????????????? ?# # #?????????????? | | ???????????????? """ #?????????????? | | ??????????????# #?????????????? | | ??????????????# % #?????????????? | | ??????????????# #?????????????? | | ??????????????# g #?????????????? | | ??????????????# * ;;####?????????????? | | ??????????????# ??????????????????? | | ??????????????####### ##?##??????????????? | | ????????????????????? % ? ??????????????? | | ??????????????####### = ?? #?????????????? | | ??????????????# #?""" #?????????????? | | ??????????????# #?""" #?????????????? | | ??????????????# # # """ #?????????????? | | ??????????????# ! # # #?????????????? | | ??????????????# !% + @ + """ #?????????????? | | ??????????????# ! #*[= # """ #?????????????? | | ??????????????# #%Yh # """ #?????????????? | | ??????????????# !##=####? #?????????????? | | ??????????????# ##[;#??? #?????????????? | | ??????????????###########%##???? #?????????????? | | ????????????????????????#t#?????####?????????????? | | ????????????????????????#%#??????????????????????? | | ????????????????????????#u#??????????????????????? | | ????????????????????????#[#??????????????????????? | | ????????????????????????#u#??????????????????????? | | ????????????????????????#r#??????????????????????? | | ?????????????????????????a???????????????????????? | | ?????????????????????????t???????????????????????? | | ?????????????????????????r???????????????????????? | | ????????????????????????? ???????????????????????? | | ?????????????????????????=???????????????????????? | | ????????????????????????? ???????????????????????? | | ????????????????????????? ???????????????????????? | | ?????????????????????????????????????????????????? | | ?????????????????????????????????????????????????? | | ?????????????????????????????????????????????????? | | ?????????????????????????????????????????????????? | | ?????????????????????????????????????????????????? | | ?????????????????????????????????????????????????? | +----------------------------------------------------+ Best States ------------- Heat Dissipation 59 Energy Generation 18 Energy Capacity 290 Matter Stores 300 Matter Capacity 300 Sight Range 16 Terrain Scan Density 10 Armor Coverage 1200 Resistance: EM 20 Core Shielding 20 Utility Shielding 33 Weapon Shielding 33 Evasion (%) 40 Targeting Accuracy 5 Recoil Reduction 2 Offensive Hacking 10 Item Schematics ----------------- None Robot Schematics ------------------ M-28 Smith | -8/Materials | Hacked Fabricated ------------ Nothing Alien Tech Used ----------------- None Achievements -------------- None Challenges ------------ None Game ------ Seed CombatCloakNetwork Manual? 0 Play Time 00:48:12 Cumulative 485.4 hours Start 2023.05.08 @ 15:34:29 End 2023.05.08 @ 16:26:00 Sessions 1 Manual Loads 0 Difficulty Rogue Special Mode None Game No. 522 Rogue 513 Adventurer 8 Explorer 1 Win Type - Total 9 Types 5/1/3/0/0/0/0/0/0 Lore% 82 Gallery% 91 Achievement% 71 Wizard Run 0 Options --------- ASCII 0 Keyboard 0 Movement Numpad Keybinds 1 Fullscreen 2 Font 18/Terminus Map View 76x50 Tactical HUD 1 Map Filters NONE Filters NONE Steam 1 RUN: c66c3c55-7bbf-416e-abd7-6ad7b3c06f56